Cogmind - Beta 17.1 @@@ ROGUE MODE // 2026.09.04 @ 13:22:48 Player: sirpanda Result: Destroyed by YI-UF0 with YI-UF0's Doublenader Performance ------------- Evolutions (0) 0 Regions Visited (2) 400 Robots Destroyed (18) 90 Value Destroyed (463) 463 Prototype IDs (0) 0 Alien Tech Used (0) 0 Bonus (0) 0 TOTAL SCORE: 953 Bonus ------- None Cogmind --------- Core Integrity 0/250 Matter 146/300 Energy 125/265 System Corruption 0% Temperature Cool (0) Movement Core (250) Ox4 Location -10/Mines Parts ------- > --- POWER (1) -------- Improved Ion Engine > --- PROPULSION (2) --- (None) > --- UTILITY (2) ------ Small Storage Unit Hacking Suite > --- WEAPON (2) ------- Ripper > --- INVENTORY (8) ---- Improved Ion Engine Terrain Scanner Beam Cannon Light Cannon Rocket Launcher Rocket Launcher Peak State ------------ > --- POWER ------------ Improved Ion Engine > --- PROPULSION ------- Light Treads Light Treads > --- UTILITY ---------- Small Storage Unit Hacking Suite > --- WEAPON ----------- Rocket Launcher Rocket Launcher > --- INVENTORY -------- Improved Ion Engine Improved Ion Engine Light Nuclear Core Terrain Scanner Beam Cannon Rocket Launcher Rocket Launcher [Rating: 13] Favorites ----------- Power Improved Ion Engine Engine Improved Ion Engine Propulsion Light Treads Treads Light Treads Utility Small Storage Unit Device Seismic Detector Storage Small Storage Unit Hackware Hacking Suite Weapon Rocket Launcher Energy Gun Medium Laser Energy Cannon Beam Cannon Launcher Rocket Launcher Slashing Weapon Ripper Build | -11 -10 -10 ------- Run | Yrd Mat Min Slots Evolved . | . . . Power . | . . . Propulsion . | . . . Utility . | . . . Weapon . | . . . Parts Attached 18 | 7 6 5 Power 5 | 2 1 2 Engine 5 | 2 1 2 Core . | . . . Reactor . | . . . Propulsion 2 | 2 . . Treads 2 | 2 . . Leg . | . . . Wheel . | . . . Hover . | . . . Flight . | . . . Utility 4 | 1 2 1 Device 1 | . 1 . Storage 2 | 1 . 1 Processor . | . . . Hackware 1 | . 1 . Protection . | . . . Artifact . | . . . Weapon 7 | 2 3 2 Energy Gun 2 | 2 . . Energy Cannon 1 | . 1 . Ballistic Gun . | . . . Ballistic Cannon . | . . . Launcher 3 | . 2 1 Special Weapon . | . . . Impact Weapon . | . . . Slashing Weapon 1 | . . 1 Piercing Weapon . | . . . Special Melee Weapon . | . . . Unidentified Prototypes . | . . . Parts Lost 5 | . . 5 Power 1 | . . 1 Propulsion 2 | . . 2 Utility . | . . . Weapon 2 | . . 2 Highest Loss Streak 5 | . . 5 To Critical Strikes . | . . . Average Backups 5 | . 5 7 Power 2 | . 2 2 Propulsion . | . . . Utility . | . . 1 Weapon 2 | . 2 4 Tool/Special . | . . . Unused Backups 5 | . 1 4 Power 1 | . . 1 Propulsion 1 | . 1 . Utility 1 | . . 1 Weapon 2 | . . 2 Tool/Special . | . . . Average Slot Usage (%) 95 | . 93 98 Engine 14 | . 14 14 Treads 27 | . 28 27 Device 3 | . 5 . Storage 14 | . 14 14 Hackware 6 | . 2 14 Energy Gun 3 | . 5 . Energy Cannon 2 | . 3 . Launcher 21 | . 18 27 Peak Build Rating 13 | 6 13 13 Average Rating 10 | 4 9 12 On Entrance 6 | . 6 13 Avg Prop Armor Cover (%) . | . . . Naked Turns . | . . . Heaviest Build 21 | 14 21 20 Greatest Support 40 | 40 40 40 Greatest Overweight (x) 4 | . . 4 Average Overweight (x) . | . . . Largest Inventory Capacity 25 | 8 8 25 Average Capacity 7 | 6 8 8 Most Carried 8 | 1 8 8 Average Carried 5 | . 5 7 Final Capacity 8 | 8 8 8 Final Carried 7 | 1 7 6 Class Distribution -------------------- 100% | Mutant Dominant Class ---------------- Mutant | -10/Materials Mutant | -10/Mines Resources | -11 -10 -10 ----------- Run | Yrd Mat Min Matter Collected 531 | 248 77 206 Remotely . | . . . Salvage Created 382 | . 382 . Parts 15 | . 15 . Haulers Intercepted . | . . . Recyclers Shooed . | . . . Parts Field Recycled . | . . . Retrieved Matter . | . . . Parts Self-Destructed . | . . . Prevented . | . . . Parts Restored . | . . . Kills | -11 -10 -10 ------- Run | Yrd Mat Min Combat Hostiles Destroyed 11 | . 11 . Cannons 3 | . 3 . AOE 8 | . 8 . Classes Destroyed 5 | . 5 . Recycler 1 | . 1 . Operator 3 | . 3 . Watcher 3 | . 3 . Swarmer 3 | . 3 . Grunt 8 | . 8 . Best Kill Streak 5 | . 5 . Combat Bots Only 3 | . 3 . Max Kills in Single Turn 3 | . 3 . Gunslinging . | . . . Exploded 3 | . 3 . Melee . | . . . Uniques/NPCs Destroyed . | . . . Combat | -11 -10 -10 -------- Run | Yrd Mat Min Hostile Shots Fired 65 | . 45 20 Missed 21 | . 15 6 Hits 44 | . 30 14 Projectile 44 | . 30 14 AOE 17 | . . 17 Damage Taken 980 | . 411 569 Core 252 | . 84 168 Absorbed by Shields . | . . . Core Remaining (%) 100 | 100 . . Volleys Fired 31 | . 28 3 Largest 2 | . 2 2 Hottest 110 | . 110 66 Shots Fired 61 | . 55 6 Gun 17 | . 17 . Cannon 14 | . 14 . Launcher 30 | . 24 6 Special . | . . . Kinetic . | . . . Thermal 31 | . 31 . Explosive 30 | . 24 6 Electromagnetic . | . . . Robot Hit Streak 8 | . 8 2 Robot Miss Streak 3 | . 3 1 Penetration Max . | . . . Secondary Targets . | . . . Shots Hit Robots 34 | . 30 4 Core Hits 28 | . 25 3 Critical Kills . | . . . Critical Parts Destroyed . | . . . Critical Strikes 1 | . 1 . Burn 1 | . 1 . Melee Attacks 1 | . . 1 Impact . | . . . Slashing 1 | . . 1 Piercing . | . . . Sneak Attacks . | . . . Combat Hostiles . | . . . Follow-up Attacks . | . . . Damage Inflicted 1309 | 2 1233 74 Guns 123 | . 123 . Cannons 174 | . 174 . Explosions 963 | . 930 33 Melee 34 | . . 34 Ramming 15 | 2 6 7 Kinetic . | . . . Thermal 297 | . 297 . Explosive 963 | . 930 33 Electromagnetic . | . . . Impact . | . . . Slashing 34 | . . 34 Piercing . | . . . Highest Corruption . | . . . Average Corruption . | . . . Corruption Purged . | . . . Corruption Blocked . | . . . Overload Shots . | . . . Overflow Damage 44 | . 44 . Projectiles . | . . . Explosions 44 | . 44 . Melee . | . . . Knockbacks . | . . . Impact . | . . . Kinetic . | . . . Secondary . | . . . Self-Inflicted Damage 44 | . 44 . Shots 3 | . 3 . Rammed 3 | 1 1 1 Targets Rammed 3 | 1 1 1 Kicked . | . . . Crushed . | . . . Highest Temperature 481 | . 481 18 Average Temperature 115 | . 123 8 Received Heat Transfer 177 | . 177 . Effects 2 | . 2 . Shutdowns 1 | . 1 . Energy Bleed 1 | . 1 . Siege Activations . | . . . Martial Activations . | . . . Shielding Activations . | . . . Robots Disrupted . | . . . Combat Hostiles . | . . . Robots Corrupted . | . . . Combat Hostiles . | . . . Parts Fried . | . . . Impact Corruptions . | . . . Robots Melted . | . . . Combat Hostiles . | . . . Parts Melted 1 | . 1 . Heat Transferred 814 | . 814 . Parts Sabotaged . | . . . Parts Stolen . | . . . Parts Stripped . | . . . Power Chain Reactions . | . . . Alert | -11 -10 -10 ------- Run | Yrd Mat Min Maximum Alert Level . | . . . Low Security (%) 100 | 100 100 100 Level 1 . | . . . Level 2 . | . . . Level 3 . | . . . Level 4 . | . . . Level 5 . | . . . High Security . | . . . Max Security . | . . . Peak Influence 183 | . 183 16 Initial 16 | . . 16 Average 21 | . 35 . Influence Increases 517 | . 506 11 Destroy 0b10 Robot/C 220 | . 220 . Destroy 0b10 Robot/NC 35 | . 35 . Destroy Leader 56 | . 56 . Disable Machine 30 | . 30 . Destroy Structure 146 | . 135 11 Lose Combat Pursuer 30 | . 30 . Influence Decreases 517 | . 464 53 Entered New Map 26 | . . 26 Time Decay 268 | . 252 16 Lost Part 11 | . . 11 Purge Threat 212 | . 212 . Squads Dispatched 1 | . 1 . Investigation . | . . . Extermination . | . . . Reinforcement 1 | . 1 . Assault . | . . . Garrison . | . . . Intercept . | . . . Searches Triggered . | . . . Construction Impeded . | . . . Haulers Reinforced . | . . . Active Scanning Responses . | . . . Cargo Convoy Interrupts . | . . . Stealth | -11 -10 -10 --------- Run | Yrd Mat Min Distress Signals 3 | . 3 . Communications Jammed . | . . . Distress Signals . | . . . Times Spotted 19 | . 18 1 Peak Tracking Total 4 | . 4 1 Tactical Retreats 1 | . 1 . Traps | -11 -10 -10 ------- Run | Yrd Mat Min Traps Triggered . | . . . Indirectly . | . . . Trap Hack Attempts . | . . . Triggered . | . . . Disarmed . | . . . Reprogrammed . | . . . Reused . | . . . Traps Extracted . | . . . Installed . | . . . Triggered . | . . . Machines | -11 -10 -10 ---------- Run | Yrd Mat Min Machines Disabled 2 | . 2 . Max in Single Turn 1 | . 1 . Machines Repaired . | . . . Machines Dismantled . | . . . Machines Sabotaged . | . . . Overloaded Fab Kills . | . . . Hacking | -11 -10 -10 --------- Run | Yrd Mat Min Machines Accessed 5 | . 4 1 Terminals 5 | . 4 1 Fabricators . | . . . Repair Stations . | . . . Recycling Units . | . . . Scanalyzers . | . . . Garrison Access . | . . . Total Hacks 9 | . 7 2 Successful 3 | . 3 . Failed 6 | . 4 2 Catastrophic 2 | . 2 . Database Lockouts . | . . . Manual 9 | . 7 2 Terminals 9 | . 7 2 Fabricators . | . . . Repair Stations . | . . . Recycling Units . | . . . Scanalyzers . | . . . Garrison Access . | . . . Terminal Hacks 3 | . 3 . Branch Access Points 1 | . 1 . Unreport Threat 2 | . 2 . Fabricator Hacks . | . . . Repair Station Hacks . | . . . Recycling Unit Hacks . | . . . Scanalyzer . | . . . Garrison Access Hacks . | . . . Unauthorized Hacks . | . . . Terminals . | . . . Fabricators . | . . . Repair Stations . | . . . Recycling Units . | . . . Scanalyzers . | . . . Garrison Access . | . . . Data Cores Recovered 1 | . 1 . Used . | . . . Hacking Detections 3 | . 2 1 Full Trace Events . | . . . Feedback Events . | . . . Feedback Blocked . | . . . Robot Schematics Acquired . | . . . Robots Built . | . . . Authchips . | . . . Time . | . . . Total Robot Build Rating . | . . . Part Schematics Acquired . | . . . Parts Built . | . . . Authchips . | . . . Time . | . . . Total Part Build Rating . | . . . Part Studies Acquired . | . . . Parts Repaired . | . . . Time . | . . . Parts Recycled . | . . . Recycled Matter . | . . . Retrieved Matter . | . . . Retrieved Components . | . . . Parts Scanalyzed . | . . . Part Schematics Acquired . | . . . Parts Damaged . | . . . Bothacking | -11 -10 -10 ------------ Run | Yrd Mat Min Used RIF Installer . | . . . Robots Hacked . | . . . Non-combat . | . . . Combat . | . . . Robot Hacks Applied . | . . . Relay Couplers Released . | . . . Fabnet Peak Effective % . | . . . Robots Rewired . | . . . Allies Hacked . | . . . Hacks Repelled . | . . . Allies | -11 -10 -10 -------- Run | Yrd Mat Min Total Allies . | . . . Largest Group . | . . . Highest-Rated Group . | . . . Highest-Rated Ally . | . . . Total Orders . | . . . Ally Attacks . | . . . Total Damage . | . . . Kills . | . . . Allies Corrupted . | . . . Allies Melted . | . . . Intel | -11 -10 -10 ------- Run | Yrd Mat Min Active Infowar (turns) 365 | . 365 . Seismic 365 | . 365 . Robot Analysis Total . | . . . Derelict Logs Recovered 2 | . . 2 Drone Launches . | . . . Drone Recoveries . | . . . Exploration | -11 -10 -10 ------------- Run | Yrd Mat Min Turns Passed 1486 | 104 899 483 Spaces Moved 835 | 60 489 286 Core 6 | 4 . 2 Treads 829 | 56 489 284 Legs . | . . . Wheels . | . . . Hover . | . . . Flight . | . . . Fastest Speed 50 | 50 160 160 Average Speed 159 | 152 160 160 Slowest Speed 250 | 160 160 250 Overloaded Moves . | . . . Propulsion Burnouts . | . . . Robots Hopped . | . . . Potential Cave-ins . | . . . Cave-ins Triggered . | . . . Exploration Rate (%) 45 | 4 73 60 Regions Visited 2 Branch Regions 1 Pre-discovered Areas . | . . . Known Exits Taken 1 | . 1 . Unknown Exits Taken 1 | 1 . . Scrap Searched 2 | . . 2 Spaces Dug . | . . . Terrain Destroyed 168 | . 143 25 Melee . | . . . Projectile . | . . . AOE 168 | . 143 25 Terrain Rammed . | . . . Walls Destroyed . | . . . Machines Disabled . | . . . Actions | -11 -10 -10 --------- Run | Yrd Mat Min Total 924 | 68 552 304 Wait 11 | . 11 . Move 834 | 60 488 286 Hop . | . . . Pick Up 16 | 1 12 3 Fast Attach 6 | 6 . . Attach 6 | . 2 4 Detach 2 | . . 2 Swap 7 | 1 4 2 Drop 8 | . 6 2 Fire 31 | . 28 3 Melee 1 | . . 1 Ram . | . . . Kick . | . . . Crush 2 | . 1 1 Escape Stasis . | . . . Rewire . | . . . Trap . | . . . Miscellaneous . | . . . Route ------- -11/Scrapyard -10/Materials (discovered 4 exits: *Mat x3 / *Min) -10/Mines (discovered 2 exits: *Mat x2) History --------- Turn | Location | Event 2 | -11/Scrapyard | Met Revision 17 19 | -11/Scrapyard | Discovered new exit (range 14) 105 | -11/Scrapyard | Entered Materials 308 | -10/Materials | Build established: Mutant 352 | -10/Materials | Discovered new exit (range 15) 571 | -10/Materials | Discovered new exit (range 16) 796 | -10/Materials | Discovered new exit (range 10) 866 | -10/Materials | Identified exit to Mines 1004 | -10/Materials | Entered Mines 1105 | -10/Mines | Identified exit to Materials 1197 | -10/Mines | A weapon hastily lodged in a ceiling crevice suddenly fell to the ground 1354 | -10/Mines | Discovered exit to Materials (range 16) 1472 | -10/Mines | Core integrity fell below 50% 1486 | -10/Mines | Core integrity fell below 20% 1487 | -10/Mines | Destroyed by YI-UF0 with YI-UF0's Doublenader Last Messages --------------- Acquired Lgt. Cannon. A Ripper has been hastily shoved under some rubble with a note attached: "Rip and tear!" Dropped Lgt. Nuclear Core. Acquired Ripper. Extracted 50 matter. Slammed into U-05 Engineer. K-01 Serf collects debris. EXIT=FOUND: MATERIALS Connecting with Terminal... T-07 Excavator is excavating. Lgt. Treads destroyed. YI-UF0 mumbles something. Rocket Launcher destroyed. The unstable cave ceiling collapses. Lgt. Treads destroyed. YI-UF0 mumbles something. Imp. Ion Engine destroyed. Rocket Launcher destroyed. The unstable cave ceiling collapses. Map ----- +----------------------------------------------------+ | ????????????????????????????????????# #?????????? | | ????????????????????????????????????# #?????????? | | ????????????????????????????????????# ###??????## | | ????????????????????????????????????# ########T | | ????????????????????????????????????# ## | | ????????????????????????????????????### | | ??????????????????????????????????????# ## """ " | | ??????????????????????????????????????# ## """ " | | ??????????????????????????????????????# ## """ " | | ??????????????????????????????????????# ## | | ???????????????????????????????######## ## """ " | | ????????????????????? ?????????# ## """ " | | ?????????????????? #?###### ###### ## """ " | | ???????????????? ?# #????# ## | | ??????????????? ?# #####????# ## | | ???????????????? ## ##??????? < ######## | | ????????????????? # ##?????? #??????? | | ?????????????????? ## ##????? #??????? | | ?????????????????## # ##???? #??????? | | ?????????????????# ## ##???# ##??????? | | ?????????????????# ### ##???###???????? | | ?????????????????# #### ####### #?????? | | ????????????????## # ## #?????? | | ????????????????# # #?????? | | ??????????????????# g #######??????? | | ???????????????????# @ ##????????????? | | ???????????????????# #?????????????? | | ??????????????????# # #????????????? | | ????????????? # #??????????? | | ???????????? # ##??????????? | | ????????????# ## ##???????????? | | ????????????##### ### ##?###????????????? | | ????????????????## #??# ##????????????????? | | ?????????????????####???? ##?????????????????? | | ????????????????????????? ##??????????????????? | | | | | | | | | | | | | | | | | | | | | | | | | | | | | | | +----------------------------------------------------+ Best States ------------- Heat Dissipation 25 Energy Generation 12 Energy Capacity 265 Matter Stores 300 Matter Capacity 300 Sight Range 16 Terrain Scan Density 10 Evasion (%) 40 Recoil Reduction 2 Offensive Hacking 10 Item Schematics ----------------- None Robot Schematics ------------------ None Fabricated ------------ Nothing Repaired ---------- Nothing Studied --------- None Alien Tech Used ----------------- None Achievements -------------- None Challenges ------------ None Game ------ Seed MetafieldSmallTransmogrifier Manual? 0 Play Time 00:15:01 Cumulative 18.4 hours Start 2026.09.04 @ 12:08:44 End 2026.09.04 @ 13:22:48 Sessions 1 Manual Loads 0 Difficulty Rogue Special Mode None Game No. 26 Rogue 26 Adventurer 0 Explorer 0 Win Type - Total 0 Types 0/0/0/0/0/0/0/0/0/0 Lore% 22 Gallery% 18 Achievement% 16 Wizard Run 0 Options --------- Layout 1 ASCII 0 Keyboard 0 Movement Arrows Keybinds 0 Fullscreen 1 Font 32/SmallcapsGlow Map View 50x40 Zoom Use 0% Tactical HUD 0 Map Filters NONE Filters NONE Steam 1 RUN: bf6e596d-0716-4557-9177-fe08f2e4c2fb